fUST/lending_fUST_20240711
["ID","MTS","AMOUNT","RATE_DAILY","PERIOD"]
[331690216,1720645842172,-500.0,0.00032876,7]
[331690217,1720645842181,-500.0,0.00032876,7]
[331690218,1720645842191,-504.61120666,0.00032876,7]
[331690219,1720645842200,-500.0,0.00032876,7]
[331690220,1720645842208,-500.0,0.00032876,7]
[331690221,1720645842218,-500.0,0.00032876,7]
[331690222,1720645842226,-507.91304751,0.00032876,7]
[331690223,1720645842235,-500.0,0.00032876,7]
[331690224,1720645842244,-500.0,0.00032876,7]
[331690225,1720645842253,-2116.23,0.00032876,7]
[331690226,1720645842262,-200.0,0.00032876,7]
[331690227,1720645842271,-500.0,0.00032876,7]
[331690228,1720645842280,-500.0,0.00032876,7]
[331690229,1720645842289,-189.70760529,0.00032876,7]
[331690230,1720645842298,-1191.01,0.00032876,7]
[331690231,1720645842307,-517.43145766,0.00032876,7]
[331690232,1720645842316,-500.0,0.00032876,7]
[331690233,1720645842325,-500.0,0.00032876,7]
[331690234,1720645842335,-500.0,0.00032876,7]
[331690235,1720645842344,-500.0,0.00032876,7]
[331690236,1720645842353,-500.0,0.00032876,7]
[331690237,1720645842362,-500.0,0.00032876,7]
[331690238,1720645842372,-500.0,0.00032876,7]
[331690239,1720645842381,-500.0,0.00032876,7]
[331690240,1720645842390,-500.0,0.00032876,7]
[331690241,1720645842399,-500.0,0.00032876,7]
[331690242,1720645842408,-584.45,0.00032876,7]
[331690243,1720645842417,-500.0,0.00032876,7]
[331690244,1720645842426,-500.0,0.00032876,7]
[331690245,1720645842435,-500.0,0.00032876,7]
[331690246,1720645842445,-500.0,0.00032876,7]
[331690247,1720645842454,-514.81455566,0.00032876,7]
[331690248,1720645842463,-807.15,0.00032876,7]
[331690249,1720645842473,-5269.98,0.00032876,7]
[331690250,1720645842482,-500.0,0.00032876,7]
[331690251,1720645842491,-502.39172908,0.00032876,7]
[331690252,1720645842500,-531.62223007,0.00032876,7]
[331690253,1720645842510,-971.54,0.00032876,7]
[331690254,1720645842519,-871.96,0.00032876,7]
[331690255,1720645842527,-500.0,0.00032876,7]
[331690256,1720645842537,-507.3995866,0.00032876,7]
[331690257,1720645842546,-524.97035938,0.00032876,7]
[331690259,1720645842555,-507.29056014,0.00032876,7]
[331690261,1720645842564,-1500.0,0.00032876,7]
[331690263,1720645842574,-506.28613852,0.00032876,7]
[331690265,1720645842584,-500.0,0.00032876,7]
[331690267,1720645842594,-647.46968399,0.00032876,7]
[331690269,1720645842604,-517.21036201,0.00032876,7]
[331690271,1720645842613,-1114.73,0.00032876,7]
[331690273,1720645842623,-1461.88,0.00032876,7]
[331690275,1720645842632,-500.0,0.00032876,7]
[331690278,1720645842641,-500.0,0.00032876,7]
[331690281,1720645842651,-1507.66,0.00032876,7]
[331690284,1720645842660,-750.92,0.00032876,7]
[331690286,1720645842669,-733.25,0.00032876,7]
[331690288,1720645842678,-390.66100992,0.00032876,7]
[331690290,1720645842688,-559.46,0.00032876,7]
[331690292,1720645842699,-197.01076395,0.00032876,7]
[331690294,1720645842708,-509.80991663,0.00032876,7]
[331690296,1720645842720,-500.0,0.00032876,7]
[331690298,1720645842730,-500.0,0.00032876,7]
[331690300,1720645842739,-500.0,0.00032876,7]
[331690302,1720645842748,-500.0,0.00032876,5]
[331690304,1720645842757,-500.0,0.00032876,5]
[331690306,1720645842766,-500.0,0.00032876,5]
[331690308,1720645842776,-500.0,0.00032876,5]
[331690310,1720645842785,-500.0,0.00032876,7]
[331690312,1720645842794,-500.0,0.00032876,5]
[331690314,1720645842804,-500.0,0.00032876,5]
[331690315,1720645842813,-500.0,0.00032876,5]
[331690317,1720645842822,-500.0,0.00032876,5]
[331690318,1720645842831,-500.0,0.00032876,5]
[331690319,1720645842841,-500.0,0.00032876,5]
[331690321,1720645842850,-500.0,0.00032876,7]
[331690323,1720645842859,-500.0,0.00032876,5]
[331690325,1720645842869,-500.0,0.00032876,5]
[331690327,1720645842879,-500.0,0.00032876,5]
[331690329,1720645842889,-500.0,0.00032876,7]
[331690331,1720645842900,-500.0,0.00032876,5]
[331690334,1720645842909,-500.0,0.00032876,5]
[331690336,1720645842919,-500.0,0.00032876,5]
[331690338,1720645842928,-500.0,0.00032876,7]
[331690340,1720645842941,-177.68416937,0.00032876,7]
[331690342,1720645842950,-500.0,0.00032876,7]
[331690345,1720645842960,-192.85334231,0.00032876,7]
[331690347,1720645842969,-759.868347,0.00032876,7]
[331690349,1720645842978,-350.03577873,0.00032876,7]
[331690351,1720645842989,-759.868347,0.00032876,7]
[331690352,1720645842999,-759.868347,0.00032876,7]
[331690353,1720645843009,-759.868347,0.00032876,7]
[331690354,1720645843020,-759.868347,0.00032876,7]
[331690355,1720645843031,-759.868347,0.00032876,7]
[331690356,1720645843042,-759.868347,0.00032876,7]
[331690357,1720645843055,-759.868347,0.00032876,7]
[331690358,1720645843064,-890.09,0.00032876,7]
[331690359,1720645843074,-500.0,0.00032876,7]
[331690360,1720645843083,-151.0,0.00032876,7]
[331690361,1720645843092,-151.0,0.00032876,7]
[331690362,1720645843102,-151.0,0.00032876,7]
[331690363,1720645843111,-151.0,0.00032876,7]
[331690364,1720645843120,-151.0,0.00032876,7]
[331690365,1720645843131,-227.51724818,0.00032876,7]
[331690366,1720645843140,-505.11626214,0.00032876,7]
[331690367,1720645843149,-524.54736697,0.00032876,7]
[331690368,1720645843159,-507.98358814,0.00032876,7]
[331690369,1720645843168,-156.270022,0.00032876,7]
[331690370,1720645843178,-500.0,0.00032876,7]
[331690371,1720645843187,-583.1512659,0.00032876,7]
[331690372,1720645843197,-500.0,0.00032876,7]
[331690373,1720645843207,-500.0,0.00032876,7]
[331690374,1720645843216,-284.571136,0.00032876,7]
[331690375,1720645843227,-284.571136,0.00032876,7]
[331690376,1720645843237,-284.571136,0.00032876,7]
[331690377,1720645843246,-505.56319924,0.00032876,7]
[331690378,1720645843255,-284.571136,0.00032876,7]
[331690379,1720645843264,-284.571136,0.00032876,7]
[331690380,1720645843273,-284.571136,0.00032876,7]
[331690381,1720645843283,-284.571136,0.00032876,7]
[331690382,1720645843292,-284.571136,0.00032876,7]
[331690383,1720645843301,-500.0,0.00032876,7]
[331690384,1720645843310,-151.0,0.00032876,2]
[331690385,1720645843319,-151.0,0.00032876,2]
[331690386,1720645843328,-158.346894,0.00032876,2]
[331690387,1720645843338,-535.39194579,0.00032876,7]
[331690388,1720645843347,-509.82568594,0.00032876,7]
[331690389,1720645843357,-516.65663321,0.00032876,7]
[331690390,1720645843366,-523.03987634,0.00032876,7]
[331690391,1720645843376,-500.0,0.00032876,7]
[331690392,1720645843385,-151.0,0.00032876,7]
[331690393,1720645843394,-151.0,0.00032876,7]
[331690394,1720645843405,-151.0,0.00032876,7]
[331690395,1720645843414,-151.0,0.00032876,7]
[331690396,1720645843423,-551.50224524,0.00032876,7]
[331690397,1720645843433,-513.40325431,0.00032876,7]
[331690398,1720645843442,-434.63536106,0.00032876,7]
[331690399,1720645843451,-500.0,0.00032876,7]
[331690400,1720645843460,-349.1670993,0.00032876,7]
[331690401,1720645843469,-500.0,0.00032876,7]
[331690402,1720645843479,-507.81925589,0.00032876,7]
[331690403,1720645843488,-500.0,0.00032876,7]
[331690404,1720645843498,-483.54338481,0.00032876,7]
[331690405,1720645843507,-177.31233051,0.00032876,7]
[331690406,1720645843516,-500.0,0.00032876,7]
[331690407,1720645843525,-500.0,0.00032876,7]
[331690408,1720645843534,-500.0,0.00032876,7]
[331690409,1720645843543,-500.0,0.00032876,7]
[331690410,1720645843553,-500.0,0.00032876,7]
[331690411,1720645843562,-500.0,0.00032876,7]
[331690412,1720645843571,-500.0,0.00032876,7]
[331690413,1720645843581,-500.0,0.00032876,7]
[331690414,1720645843590,-592.02,0.00032876,7]
[331690415,1720645843600,-186.21164109,0.00032876,7]
[331690416,1720645843609,-500.0,0.00032876,7]
[331690417,1720645843618,-504.58220274,0.00032876,7]
[331690418,1720645843627,-500.0,0.00032876,7]
[331690419,1720645843637,-500.0,0.00032876,7]
[331690420,1720645843646,-500.0,0.00032876,7]
[331690421,1720645843655,-511.58747215,0.00032876,7]
[331690422,1720645843665,-509.68907424,0.00032876,7]
[331690423,1720645843674,-531.85271817,0.00032876,7]
[331690424,1720645843683,-500.0,0.00032876,7]
[331690425,1720645843692,-229.230508,0.00032876,7]
[331690426,1720645843701,-229.230508,0.00032876,7]
[331690427,1720645843711,-229.230508,0.00032876,7]
[331690428,1720645843719,-229.230508,0.00032876,7]
[331690429,1720645843728,-500.0,0.00032876,7]
[331690430,1720645843738,-506.45487658,0.00032876,18]
[331690431,1720645843746,-229.230508,0.00032876,7]
[331690432,1720645843755,-229.230508,0.00032876,7]
[331690433,1720645843764,-151.0,0.00032876,7]
[331690434,1720645843773,-229.230508,0.00032876,7]
[331690435,1720645843782,-151.0,0.00032876,7]
[331690436,1720645843791,-229.230508,0.00032876,7]
[331690437,1720645843799,-151.0,0.00032876,7]
[331690438,1720645843808,-151.0,0.00032876,7]
[331690439,1720645843818,-151.0,0.00032876,7]
[331690440,1720645843827,-151.0,0.00032876,7]
[331690441,1720645843835,-151.0,0.00032876,7]
[331690442,1720645843844,-283.73,0.00032876,7]
[331690443,1720645843853,-540.14783103,0.00032876,7]
[331690444,1720645843862,-500.0,0.00032876,7]
[331690445,1720645843871,-516.79715429,0.00032876,7]
[331690446,1720645843881,-6329.19,0.00032876,2]
[331690447,1720645843891,-6329.19,0.00032876,2]
[331690448,1720645843900,-6329.19,0.00032876,2]
[331690449,1720645843909,-6329.19,0.00032876,2]
[331690450,1720645843918,-6329.19,0.00032876,2]
[331690451,1720645843927,-6329.19,0.00032876,2]
[331690452,1720645843936,-6329.19,0.00032876,2]
[331690453,1720645843946,-6329.19,0.00032876,2]
[331690454,1720645843955,-6329.19,0.00032876,2]
[331690455,1720645843964,-500.0,0.00032876,7]
[331690456,1720645843973,-6329.19,0.00032876,2]
[331690457,1720645843982,-6329.19,0.00032876,2]
[331690458,1720645843992,-6329.19,0.00032876,2]
[331690459,1720645844000,-6329.19,0.00032876,2]
[331690460,1720645844010,-6329.19,0.00032876,2]
[331690461,1720645844019,-6329.19,0.00032876,2]
[331690462,1720645844028,-6329.19,0.00032876,2]
[331690463,1720645844037,-6329.19,0.00032876,2]
[331690464,1720645844047,-6329.19,0.00032876,2]
[331690465,1720645844055,-6329.19,0.00032876,2]
[331690466,1720645844065,-6329.19,0.00032876,2]
[331690467,1720645844074,-6329.19,0.00032876,2]
[331690468,1720645844084,-6329.19,0.00032876,2]
[331690469,1720645844093,-507.47269735,0.00032876,7]
[331690470,1720645844102,-6329.19,0.00032876,2]
[331690471,1720645844111,-6329.41481392,0.00032876,2]
[331690472,1720645844119,-500.0,0.00032876,7]
[331690473,1720645844128,-3883.38,0.00032876,7]
[331690474,1720645844137,-500.0,0.00032876,7]
[331690475,1720645844146,-525.33536502,0.00032876,7]
[331690476,1720645844155,-151.0,0.00032876,7]
[331690477,1720645844164,-151.0,0.00032876,7]
[331690478,1720645844173,-151.0,0.00032876,7]
[331690479,1720645844183,-151.0,0.00032876,7]
[331690480,1720645844191,-151.0,0.00032876,7]
[331690481,1720645844200,-251.583486,0.00032876,7]
[331690482,1720645844209,-151.0,0.00032876,7]
[331690483,1720645844218,-2078.19,0.00032876,7]
[331690484,1720645844227,-500.0,0.00032876,7]
[331690485,1720645844236,-500.0,0.00032876,7]
[331690486,1720645844245,-500.0,0.00032876,7]
[331690487,1720645844254,-562.45524875,0.00032876,7]
[331690488,1720645844346,-636.13,0.00032876,7]
[331690489,1720645844356,-500.0,0.00032876,7]
[331690490,1720645844365,-500.0,0.00032876,7]
[331690491,1720645844374,-501.01563599,0.00032876,7]
[331690492,1720645844383,-500.0,0.00032876,7]
[331690493,1720645844391,-155.42735479,0.00032876,7]
[331690494,1720645844400,-500.0,0.00032876,7]
[331690495,1720645844409,-500.0,0.00032876,7]
[331690496,1720645844418,-225.16732668,0.00032876,7]
[331690497,1720645844427,-500.0,0.00032876,7]
[331690498,1720645844436,-470.88822629,0.00032876,7]
[331690499,1720645844445,-500.0,0.00032876,7]
[331690500,1720645844455,-500.0,0.00032876,7]
[331690501,1720645844463,-500.0,0.00032876,7]
[331690502,1720645844472,-500.0,0.00032876,7]
[331690503,1720645844482,-643.60210531,0.00032876,7]
[331690504,1720645844491,-500.0,0.00032876,7]
[331690505,1720645844501,-500.0,0.00032876,7]
[331690506,1720645844510,-313.91983114,0.00032876,7]
[331690507,1720645844519,-500.0,0.00032876,7]
[331690508,1720645844528,-500.0,0.00032876,7]
[331690509,1720645844538,-1798.34,0.00032876,7]
[331690510,1720645844547,-500.0,0.00032876,7]
[331690511,1720645844556,-500.0,0.00032876,7]
[331690512,1720645844566,-244.84769445,0.00032876,7]
[331690513,1720645844575,-500.0,0.00032876,7]
[331690514,1720645844584,-3369.55,0.00032876,7]
[331690515,1720645844593,-847.25,0.00032876,7]
[331690516,1720645844602,-512.89456019,0.00032876,7]
[331690517,1720645844611,-470.44082281,0.00032876,7]
[331690518,1720645844620,-500.0,0.00032876,7]
[331690519,1720645844629,-596.82,0.00032876,7]
[331690520,1720645844639,-545.2236247,0.00032876,7]
[331690521,1720645844648,-9418.44,0.00032876,7]
[331690522,1720645844657,-169.95444653,0.00032876,7]
[331690523,1720645844668,-602.3,0.00032876,7]
[331690524,1720645844676,-693.707601,0.00032876,7]
[331690525,1720645844686,-223.40288364,0.00032876,7]
[331690526,1720645844696,-693.707601,0.00032876,7]
[331690527,1720645844705,-693.707601,0.00032876,7]
[331690528,1720645844714,-507.54966602,0.00032876,7]
[331690529,1720645844723,-693.707601,0.00032876,7]
[331690530,1720645844732,-151.0,0.00032876,7]
[331690531,1720645844741,-151.0,0.00032876,7]
[331690532,1720645844750,-190.54055537,0.00032876,7]
[331690533,1720645844759,-151.0,0.00032876,7]
[331690534,1720645844769,-693.707601,0.00032876,7]
[331690535,1720645844778,-500.0,0.00032876,7]
[331690536,1720645844787,-693.707601,0.00032876,7]
[331690537,1720645844796,-693.707601,0.00032876,7]
[331690538,1720645844805,-151.0,0.00032876,7]
[331690539,1720645844814,-693.707601,0.00032876,7]
[331690540,1720645844823,-692.56,0.00032876,7]
[331690541,1720645844832,-205.31654185,0.00032876,7]
[331690542,1720645844841,-636.83771669,0.00032876,7]
[331690543,1720645844850,-1616.59,0.00032876,7]
[331690544,1720645844859,-1616.59,0.00032876,7]
[331690545,1720645844869,-1616.59,0.00032876,7]
[331690546,1720645844879,-1616.59,0.00032876,7]
[331690547,1720645844888,-1616.59,0.00032876,7]
[331690548,1720645844897,-1616.59,0.00032876,7]
[331690549,1720645844906,-1616.59,0.00032876,7]
[331690550,1720645844915,-500.0,0.00032876,7]
[331690551,1720645844924,-1616.59,0.00032876,7]
[331690552,1720645844935,-500.0,0.00032876,2]
[331690553,1720645844944,-267.68757,0.00032876,7]
[331690554,1720645844955,-1616.59,0.00032876,7]
[331690555,1720645844964,-1616.59,0.00032876,7]
[331690556,1720645844973,-1616.59,0.00032876,7]
[331690557,1720645844983,-1616.59,0.00032876,7]
[331690558,1720645844993,-1616.59,0.00032876,7]
[331690559,1720645845003,-1616.59,0.00032876,7]
[331690560,1720645845013,-1616.59,0.00032876,7]
[331690561,1720645845021,-1616.59,0.00032876,7]
[331690562,1720645845030,-521.77382738,0.00032876,7]
[331690563,1720645845040,-1616.59,0.00032876,7]
[331690564,1720645845049,-500.0,0.00032876,7]
[331690565,1720645845059,-1616.59,0.00032876,7]
[331690566,1720645845068,-567.85658483,0.00032876,7]
[331690567,1720645845077,-1616.59,0.00032876,7]
[331690568,1720645845087,-1616.59,0.00032876,7]
[331690569,1720645845096,-1616.59,0.00032876,7]
[331690570,1720645845105,-1616.59,0.00032876,7]
[331690571,1720645845115,-1616.59,0.00032876,7]
[331690572,1720645845124,-1142.01,0.00032876,7]
[331690573,1720645845133,-1616.65000137,0.00032876,7]
[331690574,1720645845142,-510.71627223,0.00032876,7]
[331690575,1720645845152,-599.24,0.00032876,7]
[331690576,1720645845161,-511.08383652,0.00032876,7]
[331690577,1720645845170,-500.0,0.00032876,2]
[331690578,1720645845179,-500.0,0.00032876,2]
[331690579,1720645845189,-151.0,0.00032876,7]
[331690580,1720645845198,-151.0,0.00032876,7]
[331690581,1720645845207,-151.0,0.00032876,7]
[331690582,1720645845216,-151.0,0.00032876,7]
[331690583,1720645845226,-500.0,0.00032876,2]
[331690584,1720645845234,-1722.91,0.00032876,4]
[331690585,1720645845243,-151.0,0.00032876,7]
[331690586,1720645845252,-151.0,0.00032876,7]
[331690587,1720645845263,-151.0,0.00032876,7]
[331690588,1720645845273,-151.0,0.00032876,7]
[331690589,1720645845282,-151.0,0.00032876,7]
[331690590,1720645845292,-151.0,0.00032876,7]
[331690591,1720645845301,-151.0,0.00032876,7]
[331690592,1720645845312,-500.0,0.00032876,7]
[331690593,1720645845322,-151.0,0.00032876,7]
[331690594,1720645845332,-525.0,0.00032876,7]
[331690595,1720645845342,-500.0,0.00032876,7]
[331690596,1720645845351,-321.19763501,0.00032876,2]
[331690597,1720645845361,-196.34720841,0.00032876,7]
[331690598,1720645845372,-500.0,0.00032877,7]
[331690599,1720645845382,-500.0,0.00032877,7]
[331690600,1720645845391,-500.0,0.00032877,7]
[331690601,1720645845400,-500.0,0.00032877,7]
[331690602,1720645845410,-500.0,0.00032877,7]
[331690603,1720645845422,-177.655455,0.00032877,7]
[331690604,1720645845431,-153.0,0.00032877,2]
[331690605,1720645845440,-153.0,0.00032877,2]
[331690606,1720645845450,-153.0,0.00032877,2]
[331690607,1720645845459,-153.0,0.00032877,2]
[331690608,1720645845468,-153.0,0.00032877,2]
[331690609,1720645845477,-174.63681001,0.00032879,7]
[331690610,1720645845487,-175.76547638,0.00032879,7]
[331690611,1720645845496,-225.86794594,0.00032879,7]
[331690612,1720645845507,-500.0,0.00032879,7]
[331690613,1720645845518,-500.0,0.00032879,7]
[331690614,1720645845530,-500.0,0.00032879,7]
[331690615,1720645845540,-367.87194548,0.00032879,7]
[331690616,1720645845550,-500.0,0.00032879,7]
[331690617,1720645845559,-500.0,0.00032879,7]
[331690618,1720645845568,-363.25370633,0.00032879,7]
[331690619,1720645845579,-500.0,0.00032879,7]
[331690620,1720645845589,-449.26021064,0.00032879,7]
[331690622,1720645845599,-500.0,0.00032879,7]
[331690623,1720645845609,-500.0,0.00032879,7]
[331690624,1720645845619,-500.0,0.00032879,7]
[331690625,1720645845630,-500.0,0.00032879,7]
[331690626,1720645845641,-604.27759443,0.00032879,7]
[331690627,1720645845652,-160.0,0.00032882,3]
[331690629,1720645845661,-600.0,0.00032928,2]
[331690630,1720645845670,-9324.82672741,0.00032963,2]
[331690636,1720645845873,-191.16817144,0.00029903,2]
[331690637,1720645845882,-1155.16872122,0.00029979,2]
[331690638,1720645845891,-97724.83110655,0.00032963,2]
[331690649,1720645846137,-3753.8323529,0.00023453,2]
[331690656,1720645847133,-458.17298887,0.00023453,2]
[331690687,1720646050966,4720.09136169,0.00016255,2]
[331690699,1720646085761,266.72846221,9.9e-05,2]
[331690708,1720646114499,2045.32526605,9.9e-05,2]
[331690709,1720646119680,374.87856273,0.00012,2]
[331690711,1720646160682,374.87856273,0.00014545,2]
[331690713,1720646184621,935.74725838,0.00014545,2]
[331690714,1720646207211,1156.64402944,0.00016255,2]
[331690715,1720646223486,776.42221223,0.00016255,2]
[331690716,1720646241479,567.00490638,0.00016255,2]
[331690717,1720646275346,572.85250999,0.00016255,2]
[331690719,1720646284376,528.28715924,0.00016255,2]
[331690722,1720646395373,491.38620172,0.00016255,2]
[331690723,1720646399372,154.59033561,0.00016255,2]
[331690724,1720646400247,154.91459927,0.00016255,2]
[331690725,1720646423931,179.97189068,0.00016255,2]
[331690726,1720646433367,157.98223549,0.00016255,2]
[331690727,1720646436504,282.43414984,0.00016255,2]
[331690728,1720646440017,790.54047591,0.00016255,2]
[331690729,1720646446098,331.7513231,0.00016255,2]
[331690730,1720646448494,565.08690252,0.00016255,2]
[331690731,1720646455599,195.3492206,0.00016255,2]
[331690732,1720646456196,173.90707809,0.00016255,2]
[331690733,1720646463945,318.82736005,0.00016255,2]
[331690734,1720646465812,181.84215111,0.00016255,2]
[331690735,1720646484393,208.17979125,0.00016255,2]
[331690736,1720646506779,275.48539713,0.00016255,2]
[331690737,1720646508251,4232.08107857,0.00016255,2]
[331690738,1720646509296,154.59033561,0.00016255,2]
[331690740,1720646535052,187.7887475,0.00016255,2]
[331690742,1720646592391,154.59033561,0.00016255,2]
[331690745,1720646633397,179.97189068,0.00016255,2]
[331690747,1720646663763,3137.77932824,0.00016255,2]
[331690748,1720646667146,790.54047591,0.00016255,2]
[331690749,1720646673409,154.59033561,0.00016255,2]
[331690750,1720646682700,235.76448373,0.00016255,2]
[331690751,1720646682912,454.87041268,0.00016255,2]
[331690752,1720646688181,2420.55776569,0.00016255,2]
[331690753,1720646688286,948.84245203,0.00016255,2]
[331690754,1720646688907,350.74337189,0.00016255,2]
[331690755,1720646692290,307.91089153,0.00016255,2]
[331690756,1720646709932,154.96125969,0.00016255,2]
[331690757,1720646713645,226.9008053,0.00016255,2]
[331690758,1720646721058,310.8143884,0.00016255,2]
[331690759,1720646730978,1434.44237247,0.00016255,2]
[331690760,1720646734931,4696.33537857,0.00016255,2]
[331690761,1720646739832,403.6290569,0.00016255,2]
[331690762,1720646740169,1634.59229075,0.00016255,2]
[331690763,1720646752072,301.39821167,0.00016255,2]
[331690764,1720646770084,16241.85902907,0.00016255,2]
[331690765,1720646771669,154.59033561,0.00016255,2]
[331690766,1720646795588,4720.09136169,0.00016255,2]
[331690767,1720646800784,154.83742071,0.00016255,2]
[331690769,1720646801740,155.50749252,0.00016255,2]
[331690770,1720646804784,183.17870589,0.00016255,2]
[331690771,1720646808542,179.16281259,0.00016255,2]
[331690772,1720646828454,201.04924386,0.00016255,2]
[331690773,1720646842902,154.59033561,0.00016255,2]
[331690774,1720646855559,598.8707157,0.00016255,2]
[331690776,1720646871400,491.38620172,0.00016255,2]
[331690778,1720646873550,154.59033561,0.00016255,2]
[331690779,1720646888108,154.83742071,0.00016255,2]
[331690780,1720646888430,154.59033561,0.00016255,2]
[331690782,1720646907227,165.08616365,0.00016255,2]
[331690783,1720646907506,198.09892074,0.00016255,2]
[331690784,1720646913442,318.82736005,0.00016255,2]
[331690786,1720646920480,4689.05538713,0.00016255,2]
[331690788,1720646933242,154.86836189,0.00016255,2]
[331690789,1720646935838,2126.43441341,0.00016255,2]
[331690790,1720646942542,2424.59805543,0.00016255,2]
[331690791,1720646950167,-3755.7198216,0.00017864,2]
[331690792,1720646950188,-285.842535,0.00018082,2]
[331690793,1720646950208,-250.0,0.00018082,2]
[331690794,1720646950228,-2409.6496032,0.00018197,2]
[331690795,1720646950248,-300.0,0.00018686,2]
[331690796,1720646950267,-300.0,0.00018686,2]
[331690797,1720646950287,-3000.0,0.00018687,2]
[331690798,1720646950307,-20995.360629,0.00018786,2]
[331690799,1720646950327,-403.12864762,0.00018899,2]
[331690800,1720646950348,-154.77546449,0.00018899,2]
[331690801,1720646950368,-2132.45671248,0.00018899,2]
[331690802,1720646950388,-156.56594068,0.00018899,2]
[331690803,1720646950408,-155.000775,0.00019165,2]
[331690804,1720646950429,-155.17707025,0.00019165,2]
[331690805,1720646950449,-162.025446,0.00019464,2]
[331690806,1720646950469,-516.44962639,0.00019603,2]
[331690807,1720646950489,-168.49644902,0.00019703,2]
[331690808,1720646950508,-920.49043338,0.0002,2]
[331690809,1720646950528,-3279.2606873,0.00020041,2]
[331690810,1720646950554,-24900.0,0.00020415,2]
[331690811,1720646950573,-420.0,0.00020555,2]
[331690812,1720646950595,-274.979631,0.00021096,2]
[331690813,1720646950613,-190.9913538,0.00021917,2]
[331690814,1720646950632,-166.666666,0.00021918,2]
[331690815,1720646950651,-516.44962634,0.00022217,2]
[331690816,1720646950670,-458.44819353,0.00022579,2]
[331690817,1720646950689,-167.0,0.0002261,2]
[331690818,1720646950708,-166.666666,0.00022773,2]
[331690819,1720646950727,-458.44819353,0.00022941,2]
[331690820,1720646950745,-348.36389326,0.00022941,2]
[331690821,1720646950764,-1017.21363873,0.00022942,2]
[331690822,1720646950930,160.67755252,0.00019703,2]
[331690823,1720646952112,110.21623263,0.000189,2]
[331690824,1720646962164,-306.37456469,0.000189,2]
[331690825,1720646962184,-348.36389326,0.00022579,2]
[331690826,1720646962204,-2000.0,0.00023453,2]
[331690827,1720646962224,-166.666666,0.00023627,2]
[331690828,1720646962244,-416.59079732,0.000239,2]
[331690829,1720646962263,-282.05875243,0.00023968,2]
[331690830,1720646962284,-166.666666,0.00024482,2]
[331690831,1720646962304,-516.44962634,0.00024831,2]
[331690832,1720646962323,-229.22032487,0.00025,2]
[331690833,1720646962344,-5628.03,0.00025032,3]
[331690834,1720646962363,-5353.63,0.00025032,3]
[331690835,1720646962382,-2108.40886489,0.00025032,3]
[331690908,1720647038486,-2994.66,0.00025042,3]
[331690909,1720647038499,-2079.63,0.00025042,3]
[331690910,1720647038511,-3264.24,0.00025042,3]
[331690911,1720647038522,-2720.2,0.00025042,3]
[331690912,1720647038531,-77191.7835836,0.00025042,3]
[331690913,1720647038542,-30000.0,0.00025052,2]
[331690914,1720647038553,-77191.7835836,0.00025491,3]
[331690915,1720647038563,-3184.16135184,0.00025501,5]
[331690916,1720647038574,-52142.01242753,0.00025501,2]
[331690917,1720647038585,-620.4498085,0.00025685,2]
[331690918,1720647038595,-203.49205999,0.00026573,2]
[331690919,1720647038606,-315.37751026,0.00026573,2]
[331690920,1720647038617,-2120.26427898,0.00026574,2]
[331690921,1720647038627,-2120.26427898,0.00026574,2]
[331690922,1720647038638,-285.842535,0.00027122,2]
[331690923,1720647038648,-11041.25352559,0.00027184,2]